bitfinex-derivatives/quotes_BTCF0:USTF0_20250308
["timestamp","ask_amount","ask_price","bid_price","bid_amount"]
[1741398402265,0.00017496,85782.0,85781.0,0.5143085]
[1741398402458,0.00174885,85798.0,85790.0,0.1165963]
[1741398402459,0.2041,85791.0,85790.0,0.1165963]
[1741398402954,0.2041,85791.0,85787.0,0.95238]
[1741398403155,0.2041,85791.0,85789.0,0.197]
[1741398403356,0.2041,85791.0,85789.0,0.3135971]
[1741398403660,0.2041,85791.0,85789.0,0.13875888]
[1741398403861,0.2041,85791.0,85790.0,0.3092963]
[1741398404062,0.2041,85791.0,85787.0,0.55468]
[1741398404364,0.1166011,85787.0,85780.0,0.3608]
[1741398404562,0.192,85786.0,85780.0,0.3608]
[1741398404861,0.005,85782.0,85780.0,0.3608]
[1741398405251,0.005,85782.0,85781.0,0.00017485]
[1741398405766,0.191,85786.0,85781.0,0.00017485]
[1741398405955,0.191,85786.0,85781.0,0.00117485]
[1741398406266,0.191,85786.0,85783.0,0.1166053]
[1741398406461,0.191,85786.0,85784.0,0.05836288]
[1741398406767,0.1166072,85782.0,85781.0,0.00117485]
[1741398406957,0.2098472,85782.0,85781.0,0.00117485]
[1741398407657,0.09324,85782.0,85781.0,0.00117485]
[1741398408161,0.191,85786.0,85781.0,0.05947895]
[1741398408356,0.191,85786.0,85782.0,0.1888]
[1741398408556,0.191,85786.0,85782.0,0.4369034]
[1741398408763,0.191,85786.0,85783.0,0.1166052]
[1741398408966,0.191,85786.0,85784.0,0.1166044]
[1741398409154,0.191,85786.0,85785.0,0.1166031]
[1741398409769,0.191,85786.0,85784.0,0.1888]
[1741398410065,0.1166058,85783.0,85782.0,0.001]
[1741398410271,0.4774058,85783.0,85782.0,0.001]
[1741398410768,0.1166058,85783.0,85782.0,0.001]
[1741398411464,0.1166072,85782.0,85781.0,0.00017485]
[1741398411675,0.191,85786.0,85781.0,0.00017485]
[1741398412467,0.191,85786.0,85782.0,0.001]
[1741398412663,0.191,85786.0,85780.0,0.13673373]
[1741398412862,0.1896,85785.0,85780.0,0.13673373]
[1741398413058,0.1896,85785.0,85781.0,0.001]
[1741398413371,0.2025,85784.0,85781.0,0.001]
[1741398413760,0.1896,85783.0,85781.0,0.001]
[1741398414067,0.1896,85783.0,85781.0,0.1176085]
[1741398414771,0.1896,85783.0,85782.0,0.1166072]
[1741398415571,0.1896,85783.0,85782.0,0.05836608]
[1741398415871,0.2025,85784.0,85783.0,0.1166058]
[1741398416070,0.1854,85794.0,85787.0,0.1165998]
[1741398416365,0.3608,85790.0,85784.0,0.01752]
[1741398416562,0.1854,85789.0,85784.0,0.01752]
[1741398417468,0.1854,85789.0,85788.0,0.116599]
[1741398418769,0.1854,85789.0,85788.0,0.05835788]
[1741398418970,0.1854,85789.0,85788.0,0.05935788]
[1741398419675,0.1854,85789.0,85788.0,0.24735788]
[1741398419970,0.00017485,85799.0,85798.0,0.1165854]
[1741398420167,0.00017485,85799.0,85790.0,0.0582981]
[1741398420367,0.00017485,85799.0,85796.0,0.1165876]
[1741398420675,0.00017485,85799.0,85798.0,0.1165854]
[1741398421465,0.00017485,85799.0,85788.0,0.3618]
[1741398421466,0.11676015,85799.0,85788.0,0.3618]
[1741398421671,0.0582943,85796.0,85788.0,0.30255888]
[1741398421866,0.00017485,85799.0,85788.0,0.30255888]
[1741398422070,0.4773969,85790.0,85784.0,0.01752]
[1741398422264,0.0583007,85787.0,85784.0,0.01752]
[1741398422465,0.0573007,85787.0,85784.0,0.01752]
[1741398422764,0.2619993,85789.0,85784.0,0.01752]
[1741398422964,0.0583002,85787.0,85784.0,0.01752]
[1741398423262,0.3081022,85786.0,85784.0,0.01752]
[1741398423467,0.1915,85786.0,85784.0,0.01752]
[1741398424373,0.1915,85786.0,85785.0,0.1166031]
[1741398424675,0.1915,85786.0,85785.0,0.05836198]
[1741398425061,0.1915,85786.0,85785.0,0.1854]
[1741398425368,0.1915,85786.0,85785.0,0.3020031]
[1741398426375,0.1915,85786.0,85785.0,0.1854]
[1741398426765,0.1166031,85785.0,85784.0,0.01752]
[1741398426972,0.3075031,85785.0,85784.0,0.01752]
[1741398427571,0.3896,85785.0,85784.0,0.01752]
[1741398427876,0.3896,85785.0,85781.0,0.01752]
[1741398428272,0.3896,85785.0,85783.0,0.1166052]
[1741398428574,0.3896,85785.0,85782.0,0.2027]
[1741398428767,0.4479016,85785.0,85781.0,0.01752]
[1741398428971,0.1166054,85784.0,85781.0,0.01752]
[1741398429172,0.39020001,85785.0,85781.0,0.01752]
[1741398429374,0.4039,85783.0,85781.0,0.01752]
[1741398429569,0.5775,85810.0,85781.0,0.01752]
[1741398429769,0.20248236,85800.0,85795.0,0.1165888]
[1741398429972,0.20248236,85800.0,85788.0,0.19955612]
[1741398430172,0.20248236,85800.0,85794.0,0.1165902]
[1741398430373,0.20248236,85800.0,85794.0,0.0582947]
[1741398430877,0.20248236,85800.0,85788.0,0.19955612]
[1741398430878,0.4,85797.0,85791.0,0.3988]
[1741398431079,0.4,85797.0,85796.0,0.1165881]
[1741398431267,0.1989,85797.0,85796.0,0.4773881]
[1741398433076,0.1989,85797.0,85796.0,0.3608]
[1741398433277,0.5597,85797.0,85780.0,0.14125722]
[1741398433482,0.3608,85790.0,85780.0,0.1878]
[1741398433788,0.3608,85790.0,85780.0,0.2883361]
[1741398433789,0.5881,85789.0,85780.0,0.2883361]
[1741398434082,0.3905,85789.0,85788.0,0.116599]
[1741398434773,0.3905,85789.0,85783.0,0.1166056]
[1741398434973,0.3905,85789.0,85781.0,0.3608]
[1741398435184,0.2009,85788.0,85781.0,0.3608]
[1741398435574,0.3905,85787.0,85786.0,0.1166017]
[1741398435872,0.3905,85787.0,85782.0,0.3878]
[1741398436178,0.3905,85787.0,85780.0,0.2883361]
[1741398436579,0.3905,85787.0,85781.0,0.0583042]
[1741398436771,0.00017485,85799.0,85798.0,0.1165854]
[1741398436971,0.19587485,85799.0,85789.0,0.14125722]
[1741398437172,0.19587485,85799.0,85787.0,0.1858]
[1741398437377,0.19587485,85799.0,85780.0,0.2883361]
[1741398437576,0.19587485,85799.0,85789.0,0.14125722]
[1741398437884,0.19587485,85799.0,85793.0,0.0582959]
[1741398438082,0.2032,85798.0,85793.0,0.0582959]
[1741398438574,0.1957,85797.0,85793.0,0.0582959]
[1741398438982,0.1957,85797.0,85788.0,0.14125722]
[1741398439179,0.2032,85796.0,85783.0,0.3847]
[1741398439381,0.1165913,85794.0,85783.0,0.3847]
[1741398439577,0.2032,85793.0,85783.0,0.501305]
[1741398439780,0.4054,85793.0,85783.0,0.501305]
[1741398440083,0.4054,85793.0,85783.0,0.44306388]
[1741398440484,0.4054,85793.0,85783.0,0.32645888]
[1741398440782,0.4054,85793.0,85780.0,0.2883361]
[1741398440979,0.1166024,85786.0,85775.0,0.1166166]
[1741398441287,0.4032,85785.0,85776.0,0.1166146]
[1741398441481,0.1166048,85784.0,85774.0,0.54905485]
[1741398441685,0.4032,85783.0,85775.0,0.1166165]
[1741398442085,0.4032,85783.0,85776.0,0.1166152]
[1741398442479,0.1166167,85775.0,85774.0,0.00093485]
[1741398442682,0.1166167,85775.0,85774.0,0.00017485]
[1741398442880,0.49316,85776.0,85771.0,0.01752]
[1741398443176,0.1166344,85762.0,85761.0,0.01752]
[1741398443381,0.1166452,85754.0,85753.0,0.0017491]
[1741398443580,0.1166588,85744.0,85743.0,0.01752]
[1741398443775,0.09296,85745.0,85744.0,0.1166588]
[1741398443979,0.29545423,85745.0,85744.0,0.1166588]
[1741398444183,0.29545423,85745.0,85744.0,0.3098588]
[1741398444575,9.423e-05,85745.0,85744.0,0.5116588]
[1741398444783,9.423e-05,85745.0,85744.0,0.6358322]
[1741398444977,0.00017485,85753.0,85744.0,0.5191734]
[1741398445297,0.1166588,85744.0,85743.0,0.01752]
[1741398445678,0.1166684,85737.0,85730.0,9.526e-05]
[1741398445884,0.4774684,85737.0,85730.0,9.526e-05]
[1741398446181,0.1166779,85730.0,85729.0,0.70880902]
[1741398446378,0.2096379,85730.0,85729.0,0.70880902]
[1741398446794,0.5704379,85730.0,85729.0,0.70880902]
[1741398446987,0.116682,85727.0,85726.0,0.01926962]
[1741398448381,0.116682,85727.0,85726.0,0.00174962]
[1741398448784,0.1166888,85722.0,85721.0,0.00017495]
[1741398448978,0.1167152,85703.0,85698.0,0.33768886]
[1741398449178,0.1167187,85700.0,85699.0,0.01752]
[1741398450690,0.1167296,85692.0,85691.0,0.00017495]
[1741398450985,0.57066668,85692.0,85691.0,0.00017495]
[1741398451183,0.1167433,85682.0,85670.0,0.01752]
[1741398451382,0.1167446,85681.0,85671.0,0.1167577]
[1741398451783,0.1167446,85681.0,85672.0,0.1167563]
[1741398451987,0.1167446,85681.0,85668.0,0.01752]
[1741398451988,0.3608,85682.0,85668.0,0.1167618]
[1741398452184,0.1167641,85667.0,85664.0,0.18334501]
[1741398452384,0.1944,85666.0,85664.0,0.18334501]
[1741398452579,0.1944,85666.0,85660.0,0.01752]
[1741398452892,0.1167692,85663.0,85660.0,0.01752]
[1741398453092,0.1944,85662.0,85660.0,0.01752]
[1741398453888,0.1167719,85661.0,85660.0,0.01752]
[1741398454089,0.1944,85662.0,85660.0,0.01752]
[1741398454880,0.09296,85672.0,85662.0,0.0583847]
[1741398455080,0.1994,85671.0,85663.0,0.14375888]
[1741398455288,0.1994,85671.0,85664.0,0.1935]
[1741398455482,0.36093708,85692.0,85675.0,0.058376]
[1741398455680,0.093,85689.0,85676.0,0.5543]
[1741398455992,0.093,85689.0,85676.0,0.1935]
[1741398456179,0.1994,85682.0,85676.0,0.1935]
[1741398456486,0.1994,85682.0,85677.0,0.01752]
[1741398456683,0.1994,85682.0,85676.0,0.1526436]
[1741398456884,0.1994,85682.0,85677.0,0.1167501]
[1741398457090,0.00013708,85692.0,85677.0,0.1167501]
[1741398457091,0.00013708,85692.0,85682.0,0.1167433]
[1741398457588,0.1994,85691.0,85682.0,0.24824958]
[1741398458188,0.1994,85691.0,85682.0,0.19000846]
[1741398458390,0.1994,85691.0,85682.0,0.55080846]
[1741398458886,0.00013708,85692.0,85682.0,0.30569627]
[1741398459085,0.00013708,85692.0,85682.0,0.45569627]
[1741398459286,0.00175073,85706.0,85705.0,0.1167119]
[1741398459590,0.00175073,85706.0,85698.0,0.0583605]
[1741398459788,0.00175073,85706.0,85696.0,0.1589513]
[1741398459982,0.00175073,85706.0,85704.0,0.1167133]
[1741398459983,0.1982,85705.0,85704.0,0.1167133]
[1741398460385,0.00012725,85705.0,85704.0,0.1167133]
[1741398460689,0.00012725,85705.0,85704.0,0.24409597]
[1741398460880,0.00012725,85705.0,85704.0,0.1167133]
[1741398461088,0.36092725,85705.0,85690.0,0.30273395]
[1741398461279,0.1167351,85688.0,85670.0,0.1589513]
[1741398461486,0.1167351,85688.0,85675.0,0.4065]
[1741398461694,0.4775351,85688.0,85675.0,0.5232526]
[1741398461893,0.1167351,85688.0,85675.0,0.5232522]
[1741398462195,0.4775351,85688.0,85675.0,0.4065]
[1741398462395,0.48483055,85688.0,85675.0,0.4065]
[1741398462588,0.48483055,85688.0,85677.0,0.1167498]
[1741398462887,0.3608,85688.0,85681.0,0.1167434]
[1741398463093,0.3608,85688.0,85682.0,0.2032]
[1741398463283,0.6752351,85688.0,85682.0,0.2032]
[1741398463682,0.1167365,85687.0,85682.0,0.20249734]
[1741398464079,0.1982,85686.0,85682.0,0.20249734]
[1741398464279,0.1982,85686.0,85682.0,0.14425622]
[1741398464795,0.1982,85686.0,85685.0,0.1167392]
[1741398464993,0.00017507,85693.0,85692.0,0.1167296]
[1741398465886,0.00017507,85693.0,85692.0,0.3204296]
[1741398467285,0.00017507,85693.0,85692.0,0.26218848]
[1741398468093,0.00017507,85693.0,85692.0,0.38558848]
[1741398468886,0.00017507,85693.0,85692.0,0.2037]
[1741398469081,0.00017507,85693.0,85691.0,0.1947]
[1741398469794,0.00017507,85693.0,85692.0,0.1946]
[1741398469994,0.00017507,85693.0,85692.0,0.3113296]
[1741398470186,0.00017507,85693.0,85692.0,0.25308848]
[1741398470393,0.00017507,85693.0,85692.0,0.37648848]
[1741398471295,0.00017507,85693.0,85692.0,0.25975888]
[1741398471497,0.00017507,85693.0,85692.0,0.13635888]
[1741398471994,0.0583671,85689.0,85667.0,0.01955063]
[1741398472195,0.0583731,85680.0,85667.0,0.1342826]
[1741398472499,0.39089528,85679.0,85667.0,0.01752]
[1741398472696,0.1167528,85675.0,85667.0,0.01752]
[1741398472893,0.00729528,85675.0,85667.0,0.01752]
[1741398473088,0.1589513,85710.0,85667.0,0.01752]
[1741398473089,0.4006,85674.0,85673.0,0.1167555]
[1741398473289,0.4006,85674.0,85673.0,0.41931438]
[1741398473897,0.4006,85674.0,85673.0,0.25971438]
[1741398474088,0.4006,85674.0,85667.0,0.01752]
[1741398474490,0.0583786,85672.0,85667.0,0.01752]
[1741398474694,0.116761,85669.0,85667.0,0.01752]
[1741398474891,0.0583802,85670.0,85667.0,0.01752]
[1741398475099,0.1167701,85663.0,85659.0,0.3608]
[1741398475300,0.3608,85670.0,85660.0,0.01752]
[1741398475986,0.058387,85660.0,85657.0,0.73468]
[1741398476190,0.1167791,85656.0,85651.0,0.00014568]
[1741398476391,0.0583932,85651.0,85634.0,0.01752]
[1741398476600,0.1523132,85651.0,85639.0,0.01752]
[1741398476798,0.1168005,85640.0,85639.0,0.01752]
[1741398477002,0.3608,85640.0,85628.0,0.00175176]
[1741398477190,0.3608,85647.0,85629.0,0.01752]
[1741398477396,0.3608,85647.0,85632.0,0.1168107]
[1741398477897,0.21687507,85653.0,85642.0,0.3608]
[1741398478200,0.3608,85644.0,85629.0,0.01752]
[1741398478499,0.3608,85636.0,85635.0,0.1168073]
[1741398478799,0.28066,85643.0,85633.0,0.0584046]
[1741398478999,0.09396,85643.0,85633.0,0.0584046]
[1741398479300,0.09396,85643.0,85627.0,0.01943944]
[1741398479497,0.09396,85643.0,85635.0,0.1168067]
[1741398479802,0.09396,85643.0,85632.0,0.1168102]
[1741398480303,0.09396,85643.0,85630.0,0.1168135]
[1741398480706,0.53156678,85636.0,85625.0,0.0584104]
[1741398480902,0.53156678,85636.0,85630.0,0.116813]
[1741398481199,0.53156678,85636.0,85626.0,0.1168184]
[1741398481399,0.53156678,85636.0,85623.0,0.1851]
[1741398481803,0.17076678,85637.0,85634.0,0.1168081]
[1741398482003,0.17076678,85637.0,85636.0,0.116806]
[1741398482200,0.17076678,85637.0,85635.0,0.4315565]
[1741398482502,0.17076678,85637.0,85636.0,0.05856488]
[1741398482898,0.13835675,85637.0,85636.0,0.49661428]
[1741398483705,0.03643989,85642.0,85641.0,0.1167991]
[1741398483897,0.00175178,85658.0,85657.0,0.1167773]
[1741398484097,0.34927664,85673.0,85672.0,0.1167569]
[1741398484296,0.09496,85677.0,85676.0,0.1167514]
[1741398484498,0.09496,85677.0,85667.0,0.0583813]
[1741398484499,0.3608,85687.0,85672.0,0.44919392]
[1741398484698,0.36148,85687.0,85678.0,0.1167486]
[1741398484900,0.3608,85687.0,85683.0,0.1167415]
[1741398485096,8.194e-05,85686.0,85685.0,0.1167392]
[1741398485500,8.194e-05,85686.0,85685.0,0.05849808]
[1741398485714,8.194e-05,85686.0,85685.0,0.24269808]
[1741398487306,0.00208194,85686.0,85685.0,0.24269808]
[1741398487506,0.20388194,85686.0,85685.0,0.24269808]
[1741398487815,0.20388194,85686.0,85685.0,0.05849808]
[1741398488010,0.20688194,85686.0,85685.0,0.05849808]
[1741398488217,0.00017506,85691.0,85685.0,0.12512678]
[1741398488411,0.00017506,85691.0,85690.0,0.41929128]
[1741398488616,0.1871,85703.0,85702.0,0.116716]
[1741398489213,0.1871,85703.0,85702.0,0.43125479]
[1741398491211,0.00010387,85704.0,85703.0,0.1167147]
[1741398491613,0.00010387,85704.0,85703.0,0.36697898]
[1741398492009,0.00010387,85704.0,85703.0,0.18277898]
[1741398492215,0.00010387,85704.0,85703.0,0.1167147]
[1741398492513,0.00010387,85704.0,85702.0,0.001]
[1741398492714,0.4775147,85703.0,85702.0,0.001]
[1741398493016,0.1167255,85695.0,85694.0,0.00017506]
[1741398493322,0.1157364,85687.0,85686.0,0.01752]
[1741398493518,0.1157364,85687.0,85681.0,0.00012674]
[1741398493519,0.4765364,85687.0,85684.0,0.01927049]
[1741398493714,0.3608,85687.0,85683.0,0.01752]
[1741398493919,0.1167405,85684.0,85683.0,0.01752]
[1741398494115,0.3608,85695.0,85683.0,0.01752]
[1741398494320,0.00017506,85692.0,85686.0,0.001]
[1741398494520,0.00017506,85692.0,85681.0,0.00012674]
[1741398494521,0.00017506,85692.0,85681.0,0.01752]
[1741398494722,0.00017506,85692.0,85691.0,0.116731]
[1741398495111,0.00017506,85692.0,85691.0,0.24453169]
[1741398495508,0.00017506,85692.0,85691.0,0.24466987]
[1741398495706,0.00010387,85704.0,85703.0,0.1167147]
[1741398496116,0.00010387,85704.0,85703.0,0.1342347]
[1741398496322,0.00010387,85704.0,85703.0,0.1167147]
[1741398496621,0.00010387,85704.0,85703.0,0.2655558]
[1741398497516,0.00010387,85704.0,85694.0,0.01752]
[1741398497718,0.3608,85698.0,85696.0,0.01752]
[1741398497917,0.2018,85697.0,85696.0,0.01752]
[1741398498120,0.2018,85697.0,85696.0,0.1342442]
[1741398498319,0.2018,85697.0,85696.0,0.01752]
[1741398498514,0.3185228,85697.0,85696.0,0.01752]
[1741398498717,0.1167337,85689.0,85688.0,0.00017506]
[1741398498919,0.2018,85697.0,85677.0,0.01752]
[1741398499117,0.3936,85688.0,85677.0,0.01752]
[1741398499318,0.3608,85680.0,85677.0,0.01752]
[1741398499517,0.1167487,85678.0,85677.0,0.01752]
[1741398500022,0.2018,85679.0,85677.0,0.01752]
[1741398500322,0.2008,85679.0,85678.0,0.1167487]
[1741398500726,0.2008,85679.0,85678.0,0.05850758]
[1741398500920,0.2008,85679.0,85677.0,0.1342693]
[1741398501128,0.2008,85679.0,85677.0,0.1352693]
[1741398501422,0.2008,85679.0,85678.0,0.1167487]
[1741398501929,0.00017506,85686.0,85685.0,0.1167392]
[1741398502125,0.00017506,85686.0,85685.0,0.4775392]
[1741398502314,0.00017506,85686.0,85685.0,0.60046388]
[1741398502714,0.00017506,85686.0,85685.0,0.96446388]
[1741398503729,0.00017506,85686.0,85685.0,0.90622276]
[1741398505917,0.00017506,85686.0,85675.0,0.3608]
[1741398506117,0.00017506,85686.0,85679.0,0.1167469]
[1741398506326,0.00017506,85686.0,85677.0,0.1342696]
[1741398506528,0.00017506,85686.0,85677.0,0.01752]
[1741398506725,0.00017506,85686.0,85679.0,0.1167469]
[1741398506929,0.18577506,85686.0,85678.0,0.05850688]
[1741398507123,0.195,85685.0,85678.0,0.05850688]
[1741398507325,0.195,85685.0,85677.0,0.01852]
[1741398507525,0.3608,85681.0,85677.0,0.01852]
[1741398507725,0.3806,85680.0,85677.0,0.01852]
[1741398508130,0.3806,85680.0,85679.0,0.001]
[1741398508527,0.3806,85680.0,85679.0,0.1177473]
[1741398509034,0.3806,85680.0,85679.0,0.001]
[1741398509333,0.3806,85680.0,85679.0,0.4785473]
[1741398509531,0.195,85680.0,85679.0,0.60263057]
[1741398509833,0.195,85680.0,85679.0,0.72228945]
[1741398510131,0.195,85680.0,85679.0,0.92118945]
[1741398511225,0.14746,85685.0,85684.0,0.1167405]
[1741398512935,0.14746,85685.0,85684.0,0.05849938]
[1741398513130,0.00017506,85686.0,85685.0,0.1167392]
[1741398513331,0.00017506,85686.0,85685.0,0.4969392]
[1741398513528,0.00017506,85686.0,85685.0,0.62327933]
[1741398513724,0.1955,85715.0,85685.0,0.50654013]
[1741398513923,0.1955,85715.0,85703.0,0.1167147]
[1741398514438,0.3863,85705.0,85703.0,0.1167147]
[1741398514635,0.38815494,85704.0,85703.0,0.1167147]
[1741398514937,0.38640387,85704.0,85703.0,0.25051128]
[1741398515731,0.38640387,85704.0,85703.0,0.19227016]
[1741398516138,0.38640387,85704.0,85703.0,0.59389016]
[1741398518927,0.38640387,85704.0,85703.0,0.53541658]
[1741398519135,0.38640387,85704.0,85703.0,0.65213128]
[1741398521139,0.50311717,85704.0,85703.0,0.01752]
[1741398521342,0.38640387,85704.0,85703.0,0.01752]
[1741398521641,0.50311717,85704.0,85703.0,0.01752]
[1741398521842,0.38640387,85704.0,85702.0,0.01752]
[1741398523934,0.19800387,85704.0,85703.0,0.63050619]
[1741398524241,0.19800387,85704.0,85703.0,0.1167147]
[1741398524640,0.19800387,85704.0,85702.0,0.1342347]
[1741398524844,0.1918,85703.0,85702.0,0.07599358]
[1741398525739,0.1918,85703.0,85702.0,0.60218024]
[1741398526744,0.3608,85725.0,85724.0,0.1166861]
[1741398527142,0.5616,85725.0,85715.0,0.1589513]
[1741398527541,0.5616,85725.0,85718.0,0.1166937]
[1741398527742,0.00014291,85724.0,85718.0,0.1166937]
[1741398527942,0.00014291,85724.0,85720.0,0.05844948]
[1741398528140,0.19224291,85724.0,85720.0,0.05844948]
[1741398528341,0.19224291,85724.0,85723.0,0.1166874]
[1741398528743,0.19224291,85724.0,85723.0,0.59959883]
[1741398528946,0.19224291,85724.0,85723.0,0.99399883]
[1741398529146,0.00017506,85730.0,85723.0,1.19714694]
[1741398529352,0.19090825,85739.0,85738.0,0.116667]
[1741398529841,0.19090825,85739.0,85738.0,0.23875652]
[1741398530152,0.19103026,85739.0,85738.0,0.23875652]
[1741398530446,0.19203026,85739.0,85738.0,0.23875652]
[1741398530951,0.19203026,85739.0,85738.0,0.1805154]
[1741398531451,0.19303026,85739.0,85738.0,0.1805154]
[1741398533852,0.14813026,85739.0,85738.0,0.1805154]
[1741398534048,0.14813026,85739.0,85738.0,0.12208952]
[1741398534247,0.14813026,85739.0,85738.0,0.23875652]
[1741398534556,0.14813026,85739.0,85738.0,0.12208952]
[1741398535252,0.14813026,85739.0,85738.0,0.23875652]
[1741398535954,0.14813026,85739.0,85738.0,0.25627652]
[1741398536253,0.14813026,85739.0,85738.0,0.12208952]
[1741398536550,0.14813026,85739.0,85738.0,0.13960952]
[1741398536748,0.14813026,85739.0,85738.0,0.01752]
[1741398537151,0.14813026,85739.0,85737.0,0.32545428]
[1741398537353,0.1947,85738.0,85737.0,0.32545428]
[1741398537556,0.1947,85738.0,85737.0,0.01752]
[1741398537858,0.311367,85738.0,85737.0,0.01752]
[1741398538050,0.1166765,85731.0,85730.0,0.00017496]
[1741398538251,0.3608,85731.0,85730.0,0.00017496]
[1741398538646,0.1923,85732.0,85730.0,0.00017496]
[1741398539159,0.5555,85731.0,85730.0,0.00017496]
[1741398539350,0.1947,85731.0,85730.0,0.00017496]
[1741398540053,0.1947,85731.0,85726.0,0.09365684]
[1741398540357,0.1947,85731.0,85727.0,0.01752]
[1741398540554,0.1166782,85730.0,85727.0,0.01752]
[1741398540855,0.1947,85731.0,85727.0,0.01752]
[1741398541057,0.3048802,85729.0,85727.0,0.01752]
[1741398541255,0.1882,85729.0,85727.0,0.01752]
[1741398541456,0.1882,85729.0,85728.0,0.1166806]
[1741398541751,0.1882,85729.0,85728.0,0.1342922]
[1741398541958,0.1882,85729.0,85727.0,0.01752]
[1741398542253,0.1882,85729.0,85728.0,0.1166806]
[1741398542557,0.1882,85729.0,85728.0,0.24445565]
[1741398542947,0.1923,85732.0,85728.0,0.32847505]
[1741398543243,0.1923,85732.0,85731.0,0.05843538]
[1741398543658,0.1923,85732.0,85731.0,0.18624177]
[1741398544755,0.15152201,85746.0,85731.0,0.12780639]
[1741398544959,0.00017496,85747.0,85745.0,0.1166575]
[1741398545158,0.00017496,85747.0,85746.0,0.3003561]
[1741398545354,0.00017496,85747.0,85746.0,0.79181296]
[1741398545555,0.3608,85769.0,85759.0,0.1166384]
[1741398545750,0.3608,85769.0,85760.0,0.0583183]
[1741398545946,0.3608,85769.0,85760.0,0.1749546]
[1741398546148,0.3608,85769.0,85761.0,0.05839398]
[1741398546560,0.3608,85769.0,85760.0,0.0583183]
[1741398546754,0.3608,85769.0,85767.0,0.116627]
[1741398546959,0.0583144,85767.0,85760.0,0.001]
[1741398547153,0.3608,85762.0,85760.0,0.001]
[1741398547458,0.006,85769.0,85760.0,0.001]
[1741398547762,0.006,85769.0,85768.0,0.1166262]
[1741398548552,0.006,85769.0,85768.0,0.3140262]
[1741398548752,0.00017496,85774.0,85768.0,0.1974]
[1741398549059,0.19497496,85774.0,85773.0,0.1166194]
[1741398549260,0.00017496,85774.0,85773.0,0.05837828]
[1741398549460,0.00017496,85774.0,85773.0,0.24747828]
[1741398550352,0.00017496,85774.0,85773.0,0.37864739]
[1741398552362,0.1864,85787.0,85786.0,0.1166017]
[1741398553257,0.1864,85787.0,85785.0,0.2007]
[1741398553456,0.1864,85787.0,85781.0,0.1166074]
[1741398553661,0.1864,85787.0,85782.0,0.116607]
[1741398554262,0.1874,85787.0,85782.0,0.01475139]
[1741398554463,0.1874,85787.0,85778.0,0.00017485]
[1741398554663,0.1166032,85785.0,85778.0,0.00017485]
[1741398554960,0.1912,85784.0,85778.0,0.00017485]
[1741398555366,0.1912,85784.0,85776.0,0.30273373]
[1741398555564,0.00017485,85795.0,85783.0,0.3608]
[1741398555766,0.1956,85787.0,85786.0,0.1166017]
[1741398556261,0.00017485,85795.0,85794.0,0.1165909]
[1741398556461,0.00017485,85795.0,85791.0,0.1165942]
[1741398556769,0.00017485,85795.0,85794.0,0.1165909]
[1741398557165,0.00017485,85795.0,85794.0,0.5143909]
[1741398557663,0.00017485,85795.0,85787.0,0.01752]
[1741398557881,0.3608,85792.0,85787.0,0.21662]
[1741398558060,0.1977,85791.0,85788.0,0.2331968]
[1741398558270,0.1977,85791.0,85787.0,0.15837888]
[1741398558471,0.1878,85790.0,85788.0,0.116598]
[1741398558772,0.1878,85790.0,85788.0,0.2331959]
[1741398559065,0.1977,85789.0,85788.0,0.1165979]
[1741398559366,0.1977,85789.0,85778.0,0.00017485]
[1741398559571,0.1166112,85779.0,85778.0,0.00017485]
[1741398560070,0.1166126,85778.0,85777.0,0.00010907]
[1741398560271,0.5021126,85778.0,85777.0,0.00010907]
[1741398561370,0.1166162,85776.0,85769.0,0.01752]
[1741398561666,0.3598,85770.0,85769.0,0.01752]
[1741398562478,0.35990907,85770.0,85769.0,0.1341448]
[1741398562670,0.35990907,85770.0,85769.0,0.01752]
[1741398563070,0.35990907,85770.0,85769.0,0.1341448]
[1741398563271,0.35990907,85770.0,85769.0,0.01752]
[1741398563473,0.35890907,85770.0,85769.0,0.01752]
[1741398564172,0.47553257,85770.0,85769.0,0.01752]
[1741398564370,0.35890907,85770.0,85762.0,0.01752]
[1741398564565,0.3608,85763.0,85762.0,0.01752]
[1741398565078,0.3878,85769.0,85762.0,0.01752]
[1741398565277,0.3878,85769.0,85762.0,0.21692]
[1741398565578,0.3878,85769.0,85762.0,0.3335538]
[1741398565877,0.3878,85769.0,85762.0,0.21692]
[1741398566072,0.3878,85769.0,85768.0,0.1166262]
[1741398566573,0.3878,85769.0,85767.0,0.1994]
[1741398566973,0.3608,85781.0,85767.0,0.1994]
[1741398567174,0.29021968,85781.0,85780.0,0.1166099]
[1741398567369,0.29021968,85781.0,85780.0,0.05836878]
[1741398567575,0.1954,85798.0,85780.0,0.3608]
[1741398567772,0.1954,85798.0,85790.0,0.1165957]
[1741398567975,0.1954,85798.0,85792.0,0.1165932]
[1741398568274,0.3608,85795.0,85785.0,0.00017485]
[1741398568471,0.1165929,85793.0,85785.0,0.00017485]
[1741398568681,0.1954,85792.0,85785.0,0.00017485]
[1741398569269,0.1166017,85786.0,85785.0,0.00017485]
[1741398569780,0.4191,85788.0,85785.0,0.00017485]
[1741398569781,0.1954,85787.0,85785.0,0.00017485]
[1741398570170,0.2026,85786.0,85785.0,0.00017485]
[1741398570576,0.2026,85786.0,85781.0,0.2005]
[1741398570577,0.1166045,85784.0,85777.0,0.2023]
[1741398570774,0.2026,85783.0,85777.0,0.2023]
[1741398570972,0.3864,85783.0,85780.0,0.1166096]
[1741398571179,0.3864,85783.0,85779.0,0.1166105]
[1741398571373,0.3864,85783.0,85780.0,0.2023]
[1741398572283,0.3864,85783.0,85772.0,0.0583099]
[1741398572487,0.3864,85783.0,85773.0,0.2023]
[1741398572782,0.3864,85783.0,85775.0,0.1166161]
[1741398572985,0.3864,85783.0,85780.0,0.001]
[1741398573580,0.3864,85783.0,85778.0,0.05937068]
[1741398573782,0.3864,85783.0,85779.0,0.1881]
[1741398574081,0.3864,85783.0,85779.0,0.3741]
[1741398574477,0.3864,85783.0,85780.0,0.0583045]
[1741398574680,0.3864,85783.0,85780.0,0.1749136]
[1741398574878,0.3864,85783.0,85781.0,0.3741]
[1741398575982,0.00068,85799.0,85798.0,0.1165854]
[1741398576183,0.10190687,85811.0,85798.0,0.3608]
[1741398576484,0.2026,85810.0,85806.0,0.1165739]
[1741398576677,0.3882,85810.0,85807.0,0.3987]
[1741398577079,0.3882,85810.0,85809.0,0.1165705]